bitfinex-derivatives/quotes_BNBF0:USTF0_20250326
["timestamp","ask_amount","ask_price","bid_price","bid_amount"]
[1742983357729,1.19364858,630.32,630.0,1.18872608]
[1742983357932,1.19364858,630.31,630.0,1.18872608]
[1742983358131,1.19364858,630.3,630.0,1.18872608]
[1742983358329,1.19364858,630.29,630.01,1.18872608]
[1742983358528,1.19364858,630.28,630.01,1.18872608]
[1742983358729,1.19364858,630.27,630.01,1.18872608]
[1742983358933,1.19364858,630.26,630.01,1.18872608]
[1742983359133,1.19364858,630.25,630.01,1.18872608]
[1742983359333,1.19364858,630.24,630.01,1.18872608]
[1742983359635,1.19364858,630.23,630.01,1.18872608]
[1742983359830,1.19364858,630.22,630.01,1.18872608]
[1742983360032,1.19364858,630.21,630.01,1.18872608]
[1742983360232,1.19364858,630.2,630.01,1.18872608]
[1742983360432,1.19364858,630.19,630.01,1.18872608]
[1742983360635,1.19364858,630.18,630.01,1.18872608]
[1742983360836,0.3171985,630.52,630.03,1.18872608]
[1742983361032,1.19365295,630.51,630.03,1.18872608]
[1742983361234,1.19365295,630.5,630.03,1.18872608]
[1742983361435,1.19365295,630.49,630.03,1.18872608]
[1742983361637,1.19365295,630.48,630.03,1.18872608]
[1742983361832,1.19365295,630.47,630.03,1.18872608]
[1742983362034,0.3171985,630.52,630.03,1.18872608]
[1742983362035,1.19365295,630.46,630.03,1.18872608]
[1742983362233,1.19365295,630.45,630.03,1.18872608]
[1742983362438,1.19365295,630.44,630.03,1.18872608]
[1742983362637,1.19365295,630.43,630.03,1.18872608]
[1742983362937,1.19365295,630.42,630.03,1.18872608]
[1742983363138,1.19365295,630.41,630.03,1.18872608]
[1742983363438,1.19365295,630.4,630.09,1.18872608]
[1742983363638,1.19365295,630.39,630.09,1.18872608]
[1742983363838,1.19365295,630.38,630.09,1.18872608]
[1742983364034,1.19365295,630.37,630.09,1.18872608]
[1742983364235,1.19365295,630.36,630.09,1.18872608]
[1742983364430,1.19365295,630.35,630.09,1.18872608]
[1742983364737,1.19365295,630.34,630.09,1.18872608]
[1742983364938,1.19365295,630.33,630.09,1.18872608]
[1742983365132,1.19365295,630.32,630.09,1.18872608]
[1742983365343,1.19365295,630.31,630.09,1.18872608]
[1742983365633,1.19365295,630.3,630.09,1.18872608]
[1742983365837,0.3171985,630.52,630.09,1.18872608]
[1742983366041,0.3171985,630.52,629.99,1.18872608]
[1742983366042,1.19344189,630.51,629.99,1.18872608]
[1742983366241,1.19344189,630.5,629.99,1.18872608]
[1742983366436,1.19344189,630.49,629.99,1.18872608]
[1742983366634,1.19344189,630.48,629.99,1.18872608]
[1742983366938,1.19344189,630.47,629.99,1.18872608]
[1742983367140,1.19344189,630.46,629.99,1.18872608]
[1742983367339,1.19344189,630.45,629.99,1.18872608]
[1742983367535,1.19344189,630.44,629.99,1.18872608]
[1742983367840,1.19344189,630.43,630.04,1.18872608]
[1742983368032,1.19344189,630.42,630.04,1.18872608]
[1742983368238,1.19344189,630.41,630.04,1.18872608]
[1742983368434,1.19344189,630.4,630.04,1.18872608]
[1742983368636,1.19344189,630.39,630.04,1.18872608]
[1742983368834,1.19344189,630.38,630.04,1.18872608]
[1742983369033,1.19344189,630.37,630.04,1.18872608]
[1742983369235,1.19344189,630.36,630.04,1.18872608]
[1742983369443,1.19344189,630.35,630.04,1.18872608]
[1742983369642,1.19344189,630.34,630.1,1.18872608]
[1742983369941,1.19344189,630.33,630.1,1.18872608]
[1742983370142,1.19344189,630.32,630.1,1.18872608]
[1742983370345,1.19344189,630.31,630.1,1.18872608]
[1742983370542,1.19344189,630.3,630.1,1.18872608]
[1742983370742,1.19344189,630.29,630.1,1.18872608]
[1742983370937,0.3171985,630.52,630.1,1.18872608]
[1742983371142,1.19297965,630.51,630.1,1.18872608]
[1742983371343,1.19297965,630.5,630.1,1.18872608]
[1742983371539,1.19297965,630.49,630.1,1.18872608]
[1742983371738,1.19297965,630.48,630.09,1.18872608]
[1742983371938,1.19297965,630.47,630.09,1.18872608]
[1742983372142,1.19297965,630.46,630.09,1.18872608]
[1742983372339,1.19297965,630.45,630.09,1.18872608]
[1742983372538,1.19297965,630.44,630.09,1.18872608]
[1742983372737,1.19297965,630.43,630.09,1.18872608]
[1742983372940,1.19297965,630.42,630.09,1.18872608]
[1742983373141,1.19297965,630.41,630.09,1.18872608]
[1742983373343,1.19297965,630.4,630.09,1.18872608]
[1742983373643,1.19297965,630.39,630.09,1.18872608]
[1742983373944,1.19297965,630.38,630.09,1.18872608]
[1742983374145,1.19297965,630.37,630.1,1.18872608]
[1742983374444,0.3171985,630.52,630.1,1.18872608]
[1742983374643,1.19282786,630.51,630.1,1.18872608]
[1742983374840,1.19282786,630.5,630.1,1.18872608]
[1742983375037,1.19282786,630.49,630.1,1.18872608]
[1742983375343,1.19282786,630.48,630.1,1.18872608]
[1742983375538,1.19282786,630.47,630.1,1.18872608]
[1742983375738,1.19282786,630.46,630.1,1.18872608]
[1742983375943,1.19282786,630.45,630.1,1.18872608]
[1742983376246,1.19282786,630.44,630.16,1.18872608]
[1742983376439,1.19282786,630.43,630.16,1.18872608]
[1742983376644,1.19282786,630.42,630.16,1.18872608]
[1742983376846,1.19282786,630.41,630.16,1.18872608]
[1742983377042,1.19282786,630.4,630.16,1.18872608]
[1742983377243,1.19282786,630.39,630.16,1.18872608]
[1742983377547,1.19282786,630.38,630.16,1.18872608]
[1742983377746,1.19282786,630.37,630.16,1.18872608]
[1742983377946,1.19282786,630.36,630.16,1.18872608]
[1742983378146,1.19282786,630.35,630.16,1.18872608]
[1742983378345,1.19282786,630.34,630.05,1.18872608]
[1742983378546,1.19282786,630.33,630.05,1.18872608]
[1742983378743,1.19282786,630.32,630.05,1.18872608]
[1742983379047,1.19282786,630.31,630.05,1.18872608]
[1742983379249,6.23004705,631.64,630.05,1.18872608]
[1742983379449,0.31664608,631.62,630.05,1.18872608]
[1742983379749,1.48387916,631.61,630.05,1.18872608]
[1742983380049,0.31664608,631.62,630.05,1.18872608]
[1742983380050,0.31666112,631.59,630.05,1.18872608]
[1742983380241,1.48387916,631.58,630.05,1.18872608]
[1742983380447,0.31667616,631.56,630.05,1.18872608]
[1742983380650,1.4838796,631.55,630.06,1.18872608]
[1742983380845,0.31669121,631.53,630.06,1.18872608]
[1742983381049,1.4838796,631.52,630.06,1.18872608]
[1742983381243,0.31670625,631.5,630.06,1.18872608]
[1742983381447,1.4838796,631.49,630.06,1.18872608]
[1742983381650,0.3167213,631.47,630.06,1.18872608]
[1742983381950,1.4838796,631.46,630.06,1.18872608]
[1742983382149,0.31673634,631.44,630.06,1.18872608]
[1742983382351,1.48388109,631.43,630.06,1.18872608]
[1742983382651,0.31675139,631.41,630.06,1.18872608]
[1742983382853,1.48388109,631.4,630.06,1.18872608]
[1742983383145,0.31676644,631.38,630.06,1.18872608]
[1742983383348,1.19252495,631.37,630.06,1.18872608]
[1742983383552,0.31678149,631.35,630.06,1.18872608]
[1742983383751,1.19252495,631.34,630.06,1.18872608]
[1742983383950,0.31679655,631.32,630.06,1.18872608]
[1742983384151,1.19247287,631.31,630.06,1.18872608]
[1742983384352,0.3168116,631.29,630.06,1.18872608]
[1742983384545,1.19247287,631.28,630.06,1.18872608]
[1742983384751,0.31682666,631.26,630.06,1.18872608]
[1742983384951,1.19247287,631.25,630.06,1.18872608]
[1742983385153,0.31684172,631.23,630.06,1.18872608]
[1742983385351,1.19247287,631.22,630.06,1.18872608]
[1742983385552,0.31685678,631.2,630.06,1.18872608]
[1742983385748,1.19247287,631.19,630.06,1.18872608]
[1742983385953,0.31687184,631.17,629.71,1.18919417]
[1742983386252,0.31687184,631.17,629.62,1.18872608]
[1742983386253,1.19247287,631.16,629.62,1.18872608]
[1742983386453,0.27597802,631.25,629.62,1.18872608]
[1742983386454,0.3168869,631.14,629.72,0.27602617]
[1742983386651,1.19247287,631.13,629.62,1.18872608]
[1742983386852,0.31690196,631.11,629.62,1.18872608]
[1742983387049,1.19247287,631.1,629.72,0.27603931]
[1742983387255,0.31691703,631.08,629.62,1.18872608]
[1742983387463,1.19247287,631.07,629.62,1.18872608]
[1742983387654,1.19247287,631.06,629.62,1.18872608]
[1742983387850,1.19229725,631.05,629.62,1.18872608]
[1742983388056,1.19229725,631.04,629.62,1.18872608]
[1742983388257,1.50923939,631.03,629.63,1.46476977]
[1742983388451,1.50924441,631.02,629.63,1.46476977]
[1742983388655,1.50924943,631.01,629.63,1.46476977]
[1742983388958,1.50925446,631.0,629.64,0.26459465]
[1742983389150,1.50925948,630.99,629.64,0.26459465]
[1742983389352,1.5092645,630.98,629.64,0.26459465]
[1742983389555,1.50926953,630.97,629.64,0.26459465]
[1742983389751,1.50927455,630.96,629.64,0.26459465]
[1742983389953,1.50927957,630.95,629.64,0.26459465]
[1742983390157,1.19229725,630.94,629.64,0.26459465]
[1742983390358,1.50928962,630.93,629.64,0.26459465]
[1742983390559,1.50929465,630.92,629.64,0.26459465]
[1742983390761,1.50929967,630.91,629.64,0.26459465]
[1742983391061,1.50930469,630.9,629.64,0.26459465]
[1742983391359,1.50930972,630.89,629.64,0.26459465]
[1742983391558,1.19231625,630.88,629.64,0.26459465]
[1742983391760,1.19231625,630.87,629.64,0.26459465]
[1742983391960,1.19231625,630.86,629.84,1.18872608]
[1742983392256,1.19231625,630.85,629.85,0.26459465]
[1742983392455,1.19231625,630.84,629.85,0.26459465]
[1742983392658,1.19231625,630.83,629.85,0.26459465]
[1742983392860,1.19231625,630.82,629.85,0.26459465]
[1742983393060,1.19231625,630.81,629.85,0.26459465]
[1742983393262,1.19231625,630.8,629.85,0.26459465]
[1742983393457,1.19231625,630.79,629.85,0.26459465]
[1742983393662,1.19231625,630.78,629.85,0.26459465]
[1742983393960,1.19231625,630.77,629.85,0.26459465]
[1742983394161,1.19231625,630.76,630.17,1.18872608]
[1742983394358,1.19231625,630.75,630.17,1.18872608]
[1742983394558,1.19231625,630.74,630.17,1.18872608]
[1742983394755,1.19231625,630.73,630.17,1.18872608]
[1742983394956,1.19231625,630.72,630.17,1.18872608]
[1742983395261,1.19231625,630.71,630.17,1.18872608]
[1742983395463,1.19231625,630.7,630.18,1.18872608]
[1742983395763,1.19231625,630.69,630.18,1.18872608]
[1742983395962,1.19231625,630.68,630.18,1.18872608]
[1742983396264,1.19231625,630.67,630.18,1.18872608]
[1742983396463,1.19231625,630.66,630.18,1.18872608]
[1742983396762,1.19231625,630.65,630.18,1.18872608]
[1742983396959,1.19231625,630.64,630.18,1.18872608]
[1742983397160,1.19231625,630.63,630.18,1.18872608]
[1742983397357,0.31701247,630.89,630.18,1.18872608]
[1742983397358,1.19231625,630.62,630.18,1.18872608]
[1742983397558,1.19231625,630.61,630.18,1.18872608]
[1742983397760,1.19231625,630.6,630.18,1.18872608]
[1742983397963,1.19231625,630.59,630.18,1.18872608]
[1742983398164,1.19231625,630.58,630.2,1.18872608]
[1742983398459,1.19231625,630.57,630.2,1.18872608]
[1742983398661,1.19231625,630.56,630.2,1.18872608]
[1742983398861,1.19231625,630.55,630.2,1.18872608]
[1742983399063,0.27601961,630.75,630.2,1.18872608]
[1742983399261,1.19243685,630.74,630.2,1.18872608]
[1742983399460,0.27601961,630.75,630.2,1.18872608]
[1742983399461,1.19243685,630.73,630.2,1.18872608]
[1742983399665,1.19243685,630.72,630.2,1.18872608]
[1742983399863,1.19243685,630.71,630.2,1.18872608]
[1742983400062,1.19243685,630.7,630.21,1.18872608]
[1742983400262,1.19243685,630.69,630.21,1.18872608]
[1742983400459,1.19243685,630.68,630.21,1.18872608]
[1742983400660,1.19243685,630.67,630.21,1.18872608]
[1742983400861,1.19243685,630.66,630.21,1.18872608]
[1742983401065,1.19247873,630.65,630.21,1.18872608]
[1742983401264,1.19247873,630.64,630.21,1.18872608]
[1742983401570,1.19247873,630.63,630.21,1.18872608]
[1742983401770,1.19247873,630.62,630.21,1.18872608]
[1742983402070,1.19247873,630.61,630.21,1.18872608]
[1742983402271,1.19247873,630.6,630.2,1.18872608]
[1742983402571,1.19247873,630.59,630.2,1.18872608]
[1742983402771,1.19247873,630.58,630.2,1.18872608]
[1742983402971,1.19361965,630.57,630.2,1.18872608]
[1742983403165,1.19361965,630.56,630.2,1.18872608]
[1742983403370,1.19361965,630.55,630.2,1.18872608]
[1742983403571,1.19361965,630.54,630.2,1.18872608]
[1742983403770,1.19361965,630.53,630.2,1.18872608]
[1742983403971,1.19361965,630.52,630.2,1.18872608]
[1742983404273,1.19361965,630.51,630.25,1.18872608]
[1742983404568,1.19361965,630.5,630.25,1.18872608]
[1742983404773,1.19361965,630.49,630.25,1.18872608]
[1742983404971,1.19361965,630.48,630.25,1.18872608]
[1742983405175,1.19361965,630.47,630.25,1.18872608]
[1742983405372,1.19361965,630.46,630.25,1.18872608]
[1742983405573,1.19361965,630.45,630.25,1.18872608]
[1742983405771,1.19361965,630.44,630.25,1.18872608]
[1742983405972,1.19361965,630.43,630.25,1.18872608]
[1742983406175,1.19361965,630.42,630.25,1.18872608]
[1742983406476,1.19361965,630.41,630.24,1.18872608]
[1742983406669,1.19397767,630.4,630.24,1.18872608]
[1742983406869,0.27600647,630.87,630.24,1.18872608]
[1742983407073,1.19399017,630.86,630.24,1.18872608]
[1742983407268,1.19399017,630.85,630.24,1.18872608]
[1742983407472,1.19399017,630.84,630.24,1.18872608]
[1742983407772,1.19399017,630.83,630.24,1.18872608]
[1742983408073,1.19399017,630.82,630.24,1.18872608]
[1742983408273,1.19399017,630.81,630.24,1.18872608]
[1742983408473,1.19399017,630.8,629.99,1.18872608]
[1742983408671,1.19399017,630.79,629.99,1.18872608]
[1742983408969,1.19399017,630.78,629.99,1.18872608]
[1742983409173,1.19399017,630.77,629.99,1.18872608]
[1742983409373,1.19399017,630.76,629.99,1.18872608]
[1742983409574,1.19399017,630.75,629.99,1.18872608]
[1742983409772,1.19399017,630.74,629.99,1.18872608]
[1742983409975,1.19399017,630.73,629.99,1.18872608]
[1742983410180,1.19399017,630.72,629.97,1.18872608]
[1742983410475,1.19399017,630.71,629.97,1.18872608]
[1742983410676,1.19399017,630.7,629.97,1.18872608]
[1742983410874,1.19399017,630.69,629.97,1.18872608]
[1742983411070,1.19399017,630.68,629.97,1.18872608]
[1742983411274,1.19399017,630.67,629.97,1.18872608]
[1742983411473,1.19399017,630.66,629.97,1.18872608]
[1742983411668,1.19399017,630.65,629.96,1.18872608]
[1742983411873,1.19399017,630.64,629.96,1.18872608]
[1742983412070,1.19399017,630.63,629.96,1.18872608]
[1742983412372,1.1938166,630.62,629.96,1.18872608]
[1742983412572,1.1938166,630.61,629.96,1.18872608]
[1742983412770,1.1938166,630.6,629.96,1.18872608]
[1742983412973,1.1938166,630.59,629.96,1.18872608]
[1742983413173,1.1938166,630.58,629.96,1.18872608]
[1742983413377,1.1938166,630.57,629.96,1.18872608]
[1742983413577,1.1938166,630.56,629.96,1.18872608]
[1742983413772,1.1938166,630.55,629.96,1.18872608]
[1742983413971,1.1938166,630.54,629.96,1.18872608]
[1742983414172,1.1938166,630.53,629.96,1.18872608]
[1742983414379,1.19411995,630.52,629.96,1.18872608]
[1742983414677,1.19411995,630.51,629.99,1.18872608]
[1742983414878,1.19411995,630.5,629.99,1.18872608]
[1742983415086,1.19411995,630.49,630.0,0.26455507]
[1742983415280,1.19411995,630.48,630.0,0.26455507]
[1742983415480,1.19411995,630.47,630.0,0.26455507]
[1742983415681,1.19411995,630.46,630.01,0.26455508]
[1742983415874,1.19411995,630.45,630.0,0.26455508]
[1742983416077,1.19418197,630.44,630.01,0.26455508]
[1742983416278,1.19418197,630.44,629.99,1.18872608]
[1742983416279,1.19418197,630.43,630.0,0.26455508]
[1742983416479,1.19418197,630.42,630.01,0.26455508]
[1742983416780,0.27604698,630.79,630.22,1.18872608]
[1742983416781,1.19418197,630.41,630.22,1.18872608]
[1742983416979,1.19418197,630.4,630.22,1.18872608]
[1742983417181,1.19418197,630.39,630.22,1.18872608]
[1742983417378,0.27604698,630.79,630.22,1.18872608]
[1742983417575,1.19430724,630.78,630.22,1.18872608]
[1742983417775,1.19430724,630.77,630.22,1.18872608]
[1742983417977,1.19430724,630.76,630.22,1.18872608]
[1742983418179,1.19430724,630.75,630.22,1.18872608]
[1742983418380,1.19430724,630.74,630.22,1.18872608]
[1742983418576,1.19430724,630.73,630.22,1.18872608]
[1742983418776,1.19430724,630.72,630.22,1.18872608]
[1742983418975,1.19430724,630.71,630.22,1.18872608]
[1742983419274,1.19430724,630.7,630.23,1.18872608]
[1742983419481,1.19430724,630.69,630.23,1.18872608]
[1742983419682,1.19430724,630.68,630.23,1.18872608]
[1742983419986,1.19430724,630.67,630.23,1.18872608]
[1742983420184,1.19430724,630.66,630.23,1.18872608]
[1742983420382,1.19430724,630.65,630.23,1.18872608]
[1742983420586,1.19430724,630.64,630.23,1.18872608]
[1742983420883,1.19430724,630.63,630.23,1.18872608]
[1742983421087,1.19430724,630.62,630.23,1.18872608]
[1742983421283,1.19430724,630.61,630.23,1.18872608]
[1742983421485,1.19430724,630.6,630.23,1.18872608]
[1742983421690,0.27601304,630.76,630.24,1.18872608]
[1742983421691,1.19430724,630.59,630.24,1.18872608]
[1742983421887,1.19430724,630.58,630.24,1.18872608]
[1742983422085,1.19430724,630.57,630.24,1.18872608]
[1742983422390,1.19430724,630.56,630.24,1.18872608]
[1742983422590,1.19430724,630.55,630.24,1.18872608]
[1742983422791,1.19430724,630.54,630.24,1.18872608]
[1742983422986,1.19430724,630.53,630.24,1.18872608]
[1742983423186,1.19430724,630.52,630.21,1.18872608]
[1742983423492,1.19430724,630.51,630.21,1.18872608]
[1742983423691,1.19430724,630.5,630.21,1.18872608]
[1742983423892,1.19430724,630.49,630.21,1.18872608]
[1742983424089,1.19430724,630.48,630.21,1.18872608]
[1742983424389,1.19430724,630.47,630.21,1.18872608]
[1742983424589,1.19430724,630.46,630.21,1.18872608]
[1742983424886,1.19430724,630.45,630.21,1.18872608]
[1742983425092,1.19430724,630.44,630.21,1.18872608]
[1742983425291,1.19430724,630.43,630.09,1.18872608]
[1742983425491,1.19430724,630.42,630.09,1.18872608]
[1742983425694,1.19430724,630.41,630.09,1.18872608]
[1742983425892,1.19430724,630.4,630.09,1.18872608]
[1742983426088,1.19430724,630.39,630.09,1.18872608]
[1742983426290,1.19430724,630.38,630.09,1.18872608]
[1742983426493,0.27603055,630.76,630.09,1.18872608]
[1742983426693,1.19489225,630.75,630.09,1.18872608]
[1742983426993,1.19489225,630.74,630.09,1.18872608]
[1742983427192,1.19489225,630.73,630.09,1.18872608]
[1742983427495,1.19489225,630.72,630.06,1.18872608]
[1742983427687,1.19489225,630.71,630.06,1.18872608]
[1742983427887,1.19489225,630.7,630.06,1.18872608]
[1742983428092,1.19489225,630.69,630.06,1.18872608]
[1742983428287,1.19489225,630.68,630.06,1.18872608]
[1742983428493,1.19489225,630.67,630.06,1.18872608]
[1742983428694,1.19489225,630.66,630.06,1.18872608]
[1742983428896,1.19489225,630.65,630.06,1.18872608]
[1742983429096,1.19489225,630.64,630.06,1.18872608]
[1742983429297,1.19489225,630.63,630.06,1.18872608]
[1742983429491,1.19489225,630.62,630.06,1.18872608]
[1742983429692,1.19489225,630.61,630.1,1.18872608]
[1742983429897,1.19489225,630.6,630.1,1.18872608]
[1742983430197,1.19489225,630.59,630.1,1.18872608]
[1742983430397,1.19489225,630.58,630.1,1.18872608]
[1742983430696,1.19489225,630.57,630.1,1.18872608]
[1742983430996,1.19489225,630.56,630.1,1.18872608]
[1742983431197,1.19489225,630.55,630.1,1.18872608]
[1742983431497,1.19489225,630.54,630.1,1.18872608]
[1742983431693,1.19489225,630.53,630.1,1.18872608]
[1742983431891,1.19489225,630.52,630.1,1.18872608]
[1742983432196,1.19489225,630.51,630.1,1.18872608]
[1742983432392,1.19489225,630.5,630.1,1.18872608]
[1742983432697,1.19489225,630.49,630.12,1.18872608]
[1742983433098,0.31701247,630.89,630.12,1.18872608]
[1742983433293,0.2760415,630.76,630.12,1.18872608]
[1742983433797,0.31701247,630.89,630.12,1.18872608]
[1742983434199,1.19482462,630.88,630.13,0.26454809]
[1742983434398,1.19482462,630.87,630.13,0.26454809]
[1742983434598,1.19482462,630.86,630.13,0.26454809]
[1742983434894,0.27585551,630.88,630.14,1.18872608]
[1742983434895,1.19482462,630.85,630.14,1.18872608]
[1742983435099,1.19482462,630.84,630.15,0.26454809]
[1742983435298,1.19482462,630.83,630.15,0.26454809]
[1742983435498,1.19482462,630.82,630.15,0.26454809]
[1742983435698,1.19482462,630.81,630.15,0.26454809]
[1742983435893,1.19482462,630.8,630.15,0.26454809]
[1742983436098,1.19482462,630.79,630.15,0.26454809]
[1742983436300,1.19482462,630.78,630.15,0.26454809]
[1742983436497,1.19482462,630.77,630.15,0.26454809]
[1742983436694,0.31701247,630.89,630.15,0.26454809]
[1742983436695,1.19490175,630.76,630.15,0.26454809]
[1742983437000,1.19490175,630.75,630.14,1.18872608]
[1742983437202,1.19490175,630.74,630.14,1.18872608]
[1742983437399,1.19490175,630.73,630.36,1.18872608]
[1742983437593,1.19490175,630.72,630.36,1.18872608]
[1742983437899,1.19490175,630.71,630.36,1.18872608]
[1742983438098,1.19490175,630.7,630.36,1.18872608]
[1742983438298,1.19490175,630.69,630.36,1.18872608]
[1742983438495,1.19490175,630.68,630.36,1.18872608]
[1742983438697,1.19490175,630.67,630.36,1.18872608]
[1742983438897,1.19490175,630.66,630.25,1.18872608]
[1742983439098,1.19490175,630.65,630.25,1.18872608]
[1742983439299,1.19490175,630.64,630.25,1.18872608]
[1742983439496,1.19490175,630.63,630.25,1.18872608]
[1742983439695,0.31701247,630.89,630.25,1.18872608]
[1742983440002,1.19508194,630.88,630.25,1.18872608]
[1742983440201,1.19508194,630.87,630.25,1.18872608]
[1742983440402,1.19508194,630.86,630.25,1.18872608]
[1742983440593,0.27588831,630.88,630.25,1.18872608]
[1742983440594,1.19508194,630.85,630.25,1.18872608]
[1742983440796,1.19508194,630.84,630.25,1.18872608]
[1742983440997,1.19508194,630.83,630.25,1.18872608]
[1742983441202,1.19508194,630.82,630.25,1.18872608]
[1742983441406,1.19508194,630.81,630.25,1.18872608]
[1742983441600,1.19508194,630.8,630.25,1.18872608]
[1742983441798,1.19508194,630.79,630.25,1.18872608]
[1742983442001,1.19508194,630.78,630.27,1.18872608]
[1742983442203,1.19508194,630.77,630.27,1.18872608]
[1742983442398,1.19508194,630.76,630.27,1.18872608]
[1742983442603,1.19508194,630.75,630.27,1.18872608]
[1742983442797,1.19508194,630.74,630.27,1.18872608]
[1742983443098,1.19508194,630.73,630.27,1.18872608]
[1742983443298,1.19510933,630.72,630.27,1.18872608]
[1742983443501,1.19510933,630.71,630.27,1.18872608]
[1742983443699,1.19510933,630.7,630.27,1.18872608]
[1742983443905,1.19510933,630.69,630.27,1.18872608]
[1742983444099,1.19510933,630.68,630.23,1.18872608]
[1742983444299,1.19510933,630.67,630.23,1.18872608]
[1742983444498,1.19510933,630.66,630.23,1.18872608]
[1742983444703,1.19510933,630.65,630.23,1.18872608]
[1742983444898,1.19510933,630.64,630.23,1.18872608]
[1742983445201,1.19510933,630.63,630.23,1.18872608]
[1742983445402,1.19510933,630.62,630.23,1.18872608]
[1742983445603,1.19510933,630.61,630.23,1.18872608]
[1742983445801,1.19510933,630.6,630.23,1.18872608]
[1742983446001,1.19510933,630.59,630.23,1.18872608]
[1742983446202,1.19510933,630.58,630.23,1.18872608]
[1742983446498,1.19510933,630.57,630.2,1.18872608]
[1742983446706,1.19510933,630.56,630.2,1.18872608]
[1742983446904,1.19510933,630.55,630.2,1.18872608]
[1742983447103,1.19510933,630.54,630.2,1.18872608]
[1742983447304,1.19510933,630.53,630.2,1.18872608]
[1742983447499,1.19510933,630.52,630.2,1.18872608]
[1742983447705,1.19510933,630.51,630.2,1.18872608]
[1742983447903,1.19510933,630.5,630.2,1.18872608]
[1742983448109,1.19510933,630.49,630.2,1.18872608]
[1742983448407,1.19510933,630.48,630.2,1.18872608]
[1742983448609,1.19510933,630.47,630.2,1.18872608]
[1742983448808,1.19510933,630.46,630.23,1.18872608]
[1742983449003,1.19510933,630.45,630.23,1.18872608]
[1742983449310,0.2760218,630.81,630.23,1.18872608]
[1742983449509,1.19536254,630.8,630.23,1.18872608]
[1742983449711,1.19536254,630.79,630.23,1.18872608]
[1742983450009,1.19536254,630.78,630.23,1.18872608]
[1742983450209,1.19536254,630.77,630.23,1.18872608]
[1742983450512,1.19536254,630.76,630.23,1.18872608]
[1742983450703,1.19536254,630.75,630.23,1.18872608]
[1742983450904,1.19536254,630.74,630.23,1.18872608]
[1742983451209,1.19536254,630.73,630.23,1.18872608]
[1742983451406,1.19536254,630.72,630.23,1.18872608]
[1742983451608,1.19536254,630.71,630.2,1.18872608]
[1742983451808,1.19536254,630.7,630.2,1.18872608]
[1742983452009,1.19536254,630.69,630.2,1.18872608]
[1742983452309,1.19536254,630.68,630.2,1.18872608]
[1742983452509,1.19536254,630.67,630.2,1.18872608]
[1742983452709,1.19536254,630.66,630.2,1.18872608]
[1742983453009,1.19536254,630.65,630.2,1.18872608]
[1742983453209,1.19550154,630.64,630.2,1.18872608]
[1742983453408,1.19550154,630.63,630.2,1.18872608]
[1742983453609,1.19550154,630.62,630.2,1.18872608]
[1742983453905,1.19550154,630.61,630.2,1.18872608]
[1742983454110,1.19550154,630.6,630.2,1.18872608]
[1742983454312,1.19550154,630.59,630.2,1.18872608]
[1742983454512,1.19550154,630.58,630.2,1.18872608]
[1742983454712,1.19550154,630.57,630.2,1.18872608]
[1742983454912,1.19550154,630.56,630.2,1.18872608]
[1742983455108,1.19550154,630.56,629.86,1.01083938]
[1742983455109,1.19567575,630.55,630.21,1.18872608]
[1742983455307,1.19567575,630.54,630.21,1.18872608]
[1742983455506,1.19567575,630.53,630.21,1.18872608]
[1742983455709,1.19567575,630.52,630.21,1.18872608]
[1742983456011,1.19567575,630.51,630.21,1.18872608]
[1742983456212,1.19567575,630.5,630.21,1.18872608]
[1742983456511,1.19567575,630.49,630.21,1.18872608]
[1742983456712,1.19567575,630.48,630.21,1.18872608]
[1742983456908,1.19577189,630.47,630.21,1.18872608]
[1742983457112,1.19577189,630.46,630.21,1.18872608]
[1742983457313,1.19577189,630.45,630.27,1.18872608]
[1742983457513,1.19577189,630.44,630.27,1.18872608]
[1742983457711,1.19577189,630.43,630.27,1.18872608]
[1742983457912,1.19577189,630.42,630.27,1.18872608]
[1742983458110,1.19577189,630.41,630.27,1.18872608]
[1742983458307,1.19577189,630.4,630.27,1.18872608]
[1742983458512,1.19577189,630.39,630.27,1.18872608]
[1742983458717,1.19577189,630.38,630.27,1.18872608]
[1742983458911,0.2760207,630.81,630.27,1.18872608]
[1742983459108,1.19588033,630.8,630.27,1.18872608]
[1742983459307,1.19588033,630.79,630.27,1.18872608]
[1742983459512,1.19588033,630.78,630.27,1.18872608]
[1742983459708,1.19588033,630.77,630.27,1.18872608]
[1742983459908,1.19588033,630.76,630.27,1.18872608]
[1742983460113,1.19588033,630.75,630.27,1.18872608]
[1742983460313,1.19588033,630.74,630.27,1.18872608]
[1742983460513,1.19605691,630.73,630.27,1.18872608]
[1742983460813,1.19605691,630.72,630.27,1.18872608]
[1742983461115,1.19605691,630.71,630.27,1.18872608]
[1742983461314,1.19605691,630.7,630.27,1.18872608]
[1742983461508,1.19605691,630.69,630.27,1.18872608]
[1742983461709,1.19605691,630.68,630.27,1.18872608]
[1742983462007,1.19605691,630.67,630.27,1.18872608]
[1742983462210,1.19605691,630.66,630.27,1.18872608]
[1742983462412,1.19605691,630.65,630.27,1.18872608]
[1742983462610,1.19605691,630.64,630.3,1.18872608]
[1742983462809,1.19605691,630.63,630.3,1.18872608]
[1742983463009,1.19605691,630.62,630.3,1.18872608]
[1742983463214,1.19605691,630.61,630.3,1.18872608]
[1742983463914,0.27598896,630.81,630.3,1.18872608]